[Event "FIDE Women Candidates 2026"]
[White "Assaubayeva,Bibisara"]
[Black "Muzychuk,Anna"]
[Site "Agios Georgios Pegeia"]
[Round "13.3"]
[Annotator "RC"]
[Result "1-0"]
[Date "2026.04.14"]
[WhiteElo "2516"]
[BlackElo "2522"]
[PlyCount "87"]
[TimeControl "60"]

1. e4 {[%emt 0:0:5]} e5 {[%emt 0:0:6]} 2. Nf3 {[%emt 0:0:5]} Nc6 {[%emt 0:0:7]} 3. d4 {[%emt 0:0:4]} exd4 {[%emt 0:0:15]} 4. Nxd4 {[%emt 0:0:5]} Nf6 {[%emt 0:0:33]} 5. Nxc6 {[%emt 0:0:7]} bxc6 {[%emt 0:0:3]} 6. Qe2 {[%emt 0:0:7]} Qe7 {[%emt 0:3:22]} 7. Nc3 {[%emt 0:0:7]} d5 {[%emt 0:3:11]} 8. exd5 {[%emt 0:0:7]} Nxd5 {[%emt 0:6:47]} 9. Bd2 {[%emt 0:0:30]} Bg4 {[%emt 0:5:35]} 10. f3 {[%emt 0:1:7]} Qxe2+ {[%emt 0:0:14]} 11. Bxe2 {[%emt 0:1:31]} Be6 {[%emt 0:1:36]} 12. O-O-O {[%emt 0:2:13]} Be7 {[%emt 0:4:23]} 13. Nxd5 {[%emt 0:8:41]} cxd5 {[%emt 0:18:13]} 14. Bb5+ {[%emt 0:0:21]} Bd7 {[%emt 0:0:12]} 15. Rhe1 {[%emt 0:3:43]} Bxb5 {[%emt 0:6:56]} 16. Bb4 {[%emt 0:0:9]} O-O-O {[%emt 0:0:18]} 17. Rxe7 {[%emt 0:0:24]} Rd7 {[%emt 0:1:29]} 18. Rxd7 {[%emt 0:0:13]} Bxd7 {[%emt 0:0:5]} 19. Rxd5 {[%emt 0:0:10]} h5 {[%emt 0:1:41]} 20. Bc3 {[%emt 0:2:40]} f6 {[%emt 0:0:44]} 21. h4 {[%emt 0:2:45]} Be6 {[%emt 0:8:32]} 22. Rc5 {[%emt 0:2:32]} Kb7 {[%emt 0:0:17]} 23. a4 {[%emt 0:1:25]} Bf7 {[%emt 0:4:21]} 24. b4 {[%emt 0:24:49]} Rd8 {[%emt 0:5:48]} 25. b5 {[%emt 0:3:59]} Rd5 {[%emt 0:0:33]} 26. Rc6 {[%emt 0:1:28]} Rd6 {[%emt 0:2:54]} 27. Rxd6 {[%emt 0:0:28]} cxd6 {[%emt 0:0:0]} 28. Kd2 {[%emt 0:4:1]} Be6 {[%emt 0:19:28]} 29. Bb4 {[%emt 0:1:59]} Kc7 {[%emt 0:0:3]} 30. Ke3 {[%emt 0:5:11]} Bc4 {[%emt 0:4:13]} 31. Ba5+ {[%emt 0:12:28]} Kd7 {[%emt 0:0:23]} 32. Bc3 {[%emt 0:0:16]} a6 {[%emt 0:1:6]} 33. b6 {[%emt 0:3:27]} Bf7 {[%emt 0:1:31]} 34. a5 {[%emt 0:9:4]} Bg6 {[%emt 0:0:30]} 35. Kd2 {[%emt 0:0:5]} Bf5 {[%emt 0:0:27]} 36. Bd4 {[%emt 0:0:21]} Kc6 {[%emt 0:0:33]} 37. c3 {[%emt 0:2:56]} Bc8 {[%emt 0:0:56]} 38. Ke3 {[%emt 0:2:8]} Kd5 {[%emt 0:1:10]} 39. g4 {[%emt 0:0:21]} g6 {[%emt 0:0:46]} 40. Bxf6 {[%emt 0:0:50]} Bb7 {[%emt 0:0:28]} 41. Kf4 {[%emt 0:33:2]} Ke6 {[%emt 0:2:24]} 42. Kg5 {[%emt 0:0:0]} Kf7 {[%emt 0:4:56]} 43. gxh5 {[%emt 0:0:0]} gxh5 {[%emt 0:0:4]} 44. f4 {[%emt 0:0:0]} 1-0

[Event "FIDE Women Candidates 2026"]
[White "Lagno,Kateryna"]
[Black "Divya Deshmukh"]
[Site "Agios Georgios Pegeia"]
[Round "13.4"]
[Annotator "ChessBase"]
[Result "1-0"]
[Date "2026.04.14"]
[WhiteElo "2508"]
[BlackElo "2497"]
[PlyCount "73"]
[TimeControl "60"]

1. e4 {[%emt 0:0:2]} c6 {[%emt 0:0:6]} 2. d4 {[%emt 0:0:11]} d5 {[%emt 0:0:5]} 3. Nd2 {[%emt 0:0:8]} dxe4 {[%emt 0:0:16]} 4. Nxe4 {[%emt 0:0:4]} Nf6 {[%emt 0:0:7]} 5. Nxf6+ {[%emt 0:0:14]} exf6 {[%emt 0:0:18]} 6. g3 {[%emt 0:0:15]} Bd6 {[%emt 0:8:6]} 7. Bg2 {[%emt 0:0:12]} O-O {[%emt 0:4:21]} 8. Ne2 {[%emt 0:0:28]} Bg4 {[%emt 0:3:4]} 9. O-O {[%emt 0:0:36]} Qd7 {[%emt 0:2:30]} 10. Re1 {[%emt 0:7:59]} Na6 {[%emt 0:2:58]} 11. a3 {[%emt 0:11:14]} h5 {[%emt 0:12:43]} 12. Qd3 {[%emt 0:24:7]} Rad8 {[%emt 0:7:23]} 13. Be3 {[%emt 0:2:59]} Qc8 {[%emt 0:15:18]} 14. c4 {[%emt 0:1:56]} Nc7 {[%emt 0:4:43]} 15. d5 {[%emt 0:15:49]} Be5 {[%emt 0:11:25]} 16. Qb3 {[%emt 0:1:5]} cxd5 {[%emt 0:6:43]} 17. cxd5 {[%emt 0:0:5]} b6 {[%emt 0:0:14]} 18. Rad1 {[%emt 0:4:43]} Qa6 {[%emt 0:4:30]} 19. Rd2 {[%emt 0:1:9]} Rd7 {[%emt 0:2:3]} 20. Nd4 {[%emt 0:6:21]} Bxd4 {[%emt 0:6:49]} 21. Rxd4 {[%emt 0:0:5]} Rfd8 {[%emt 0:1:24]} 22. h3 {[%emt 0:2:28]} Bf5 {[%emt 0:0:20]} 23. Rc1 {[%emt 0:4:55]} Ne8 {[%emt 0:3:49]} 24. g4 {[%emt 0:1:13]} hxg4 {[%emt 0:0:53]} 25. hxg4 {[%emt 0:0:4]} Bg6 {[%emt 0:0:3]} 26. Bf1 {[%emt 0:3:48]} Qb7 {[%emt 0:0:4]} 27. Bb5 {[%emt 0:0:5]} Re7 {[%emt 0:1:0]} 28. Bc6 {[%emt 0:0:33]} Qb8 {[%emt 0:1:12]} 29. Bf4 {[%emt 0:0:12]} Nd6 {[%emt 0:0:6]} 30. Qg3 {[%emt 0:0:35]} Re2 {[%emt 0:1:52]} 31. Kf1 {[%emt 0:0:47]} Rc2 {[%emt 0:1:4]} 32. Re1 {[%emt 0:0:18]} Rxb2 {[%emt 0:0:27]} 33. Bxd6 {[%emt 0:1:8]} Qc8 {[%emt 0:0:29]} 34. Bc7 {[%emt 0:0:44]} Rf8 {[%emt 0:0:33]} 35. d6 {[%emt 0:0:22]} Rc2 {[%emt 0:0:12]} 36. d7 {[%emt 0:0:54]} Qa6+ {[%emt 0:0:46]} 37. Kg1 {[%emt 0:0:5]} 1-0

[Event "FIDE Women Candidates 2026"]
[White "Vaishali,Rameshbabu"]
[Black "Lagno,Kateryna"]
[Site "Agios Georgios Pegeia"]
[Round "14.1"]
[Annotator "RC"]
[Result "1-0"]
[Date "2026.04.15"]
[WhiteElo "2470"]
[BlackElo "2508"]
[PlyCount "95"]
[TimeControl "60"]

1. e4 {[%emt 0:0:19]} c5 {[%emt 0:0:7]} 2. Nf3 {[%emt 0:0:7]} d6 {[%emt 0:0:9]} 3. d4 {[%emt 0:0:10]} cxd4 {[%emt 0:0:8]} 4. Nxd4 {[%emt 0:0:5]} Nf6 {[%emt 0:0:7]} 5. Nc3 {[%emt 0:0:5]} g6 {[%emt 0:0:10]} 6. Be3 {[%emt 0:1:33]} Bg7 {[%emt 0:0:16]} 7. f3 {[%emt 0:0:19]} O-O {[%emt 0:0:19]} 8. Qd2 {[%emt 0:0:15]} Nc6 {[%emt 0:0:14]} 9. O-O-O {[%emt 0:0:32]} d5 {[%emt 0:0:15]} 10. Nxc6 {[%emt 0:0:57]} bxc6 {[%emt 0:0:12]} 11. Bc4 {[%emt 0:0:9]} Be6 {[%emt 0:32:55]} 12. exd5 {[%emt 0:7:47]} cxd5 {[%emt 0:0:4]} 13. Nxd5 {[%emt 0:0:56]} Nxd5 {[%emt 0:0:37]} 14. Bxd5 {[%emt 0:0:3]} Rb8 {[%emt 0:1:13]} 15. Bb3 {[%emt 0:12:19]} Qc8 {[%emt 0:0:41]} 16. Kb1 {[%emt 0:3:24]} Bxb3 {[%emt 0:16:56]} 17. axb3 {[%emt 0:4:0]} a5 {[%emt 0:0:29]} 18. Bd4 {[%emt 0:12:27]} e5 {[%emt 0:1:3]} 19. Bc3 {[%emt 0:0:37]} a4 {[%emt 0:1:21]} 20. bxa4 {[%emt 0:6:36]} Qc4 {[%emt 0:0:36]} 21. b3 {[%emt 0:2:2]} Qxa4 {[%emt 0:0:36]} 22. Rhe1 {[%emt 0:4:26]} Rb5 {[%emt 0:15:50]} 23. Re4 {[%emt 0:5:13]} Qa7 {[%emt 0:0:34]} 24. Qe3 {[%emt 0:8:5]} Qc7 {[%emt 0:3:54]} 25. Qd3 {[%emt 0:2:58]} Qb6 {[%emt 0:3:57]} 26. Bb2 {[%emt 0:3:45]} Ra5 {[%emt 0:0:24]} 27. Bc3 {[%emt 0:2:29]} Ra6 {[%emt 0:2:2]} 28. Qe3 {[%emt 0:3:25]} Qc6 {[%emt 0:1:19]} 29. Rc4 {[%emt 0:1:13]} Qe6 {[%emt 0:0:32]} 30. Qe4 {[%emt 0:3:2]} Rfa8 {[%emt 0:2:4]} 31. Rc5 {[%emt 0:2:21]} h5 {[%emt 0:1:44]} 32. g4 {[%emt 0:5:46]} hxg4 {[%emt 0:1:4]} 33. fxg4 {[%emt 0:0:3]} Kh7 {[%emt 0:6:31]} 34. Rcd5 {[%emt 0:2:25]} Qc6 {[%emt 0:1:44]} 35. Bb2 {[%emt 0:1:22]} Ra2 {[%emt 0:0:24]} 36. g5 {[%emt 0:0:56]} Qb6 {[%emt 0:3:2]} 37. Qh4+ {[%emt 0:1:57]} Kg8 {[%emt 0:0:4]} 38. Qe4 {[%emt 0:0:2]} R8a4 {[%emt 0:1:18]} 39. Rd8+ {[%emt 0:3:56]} Kh7 {[%emt 0:0:20]} 40. c4 {[%emt 0:1:5]} Rxc4 {[%emt 0:4:39]} 41. Qxc4 {[%emt 0:30:42]} Rxb2+ {[%emt 0:30:4]} 42. Kxb2 {[%emt 0:0:8]} e4+ {[%emt 0:0:0]} 43. Kb1 {[%emt 0:0:0]} Qf2 {[%emt 0:0:0]} 44. R8d2 {[%emt 0:0:0]} Qf5 {[%emt 0:0:0]} 45. Qd5 {[%emt 0:0:0]} Qf3 {[%emt 0:0:0]} 46. Rc2 {[%emt 0:0:0]} Qf4 {[%emt 0:0:0]} 47. Re1 {[%emt 0:0:0]} e3 {[%emt 0:0:0]} 48. Qg2 {[%emt 0:0:0]} 1-0

[Event "FIDE Women Candidates 2026"]
[White "Divya Deshmukh"]
[Black "Assaubayeva,Bibisara"]
[Site "Agios Georgios Pegeia"]
[Round "14.2"]
[Annotator "RC"]
[Result "1/2-1/2"]
[Date "2026.04.15"]
[WhiteElo "2497"]
[BlackElo "2516"]
[PlyCount "72"]
[TimeControl "60"]

1. d4 {[%emt 0:0:4]} Nf6 {[%emt 0:0:14]} 2. g3 {[%emt 0:0:11]} c5 {[%emt 0:4:6]} 3. d5 {[%emt 0:0:10]} d6 {[%emt 0:2:18]} 4. Bg2 {[%emt 0:0:54]} g6 {[%emt 0:1:12]} 5. a4 {[%emt 0:0:32]} Bg7 {[%emt 0:0:6]} 6. e4 {[%emt 0:0:8]} O-O {[%emt 0:0:5]} 7. Ne2 {[%emt 0:0:11]} Nbd7 {[%emt 0:0:52]} 8. O-O {[%emt 0:1:22]} Rb8 {[%emt 0:1:10]} 9. c4 {[%emt 0:1:57]} a6 {[%emt 0:0:53]} 10. Nec3 {[%emt 0:0:4]} Qc7 {[%emt 0:2:49]} 11. h3 {[%emt 0:9:52]} e6 {[%emt 0:0:48]} 12. dxe6 {[%emt 0:11:17]} fxe6 {[%emt 0:0:8]} 13. Bf4 {[%emt 0:2:18]} Ne5 {[%emt 0:2:3]} 14. Bxe5 {[%emt 0:6:37]} dxe5 {[%emt 0:0:6]} 15. Nd2 {[%emt 0:6:31]} Bd7 {[%emt 0:0:50]} 16. Qe2 {[%emt 0:0:58]} Rbd8 {[%emt 0:1:26]} 17. Qe3 {[%emt 0:6:37]} a5 {[%emt 0:6:37]} 18. Nf3 {[%emt 0:5:10]} b6 {[%emt 0:2:16]} 19. h4 {[%emt 0:13:56]} Kh8 {[%emt 0:9:13]} 20. Bh3 {[%emt 0:1:24]} Bc8 {[%emt 0:2:32]} 21. Nb5 {[%emt 0:2:20]} Qe7 {[%emt 0:2:29]} 22. Rad1 {[%emt 0:5:52]} Rxd1 {[%emt 0:2:51]} 23. Rxd1 {[%emt 0:0:2]} Nxe4 {[%emt 0:0:19]} 24. Bg2 {[%emt 0:12:4]} Bb7 {[%emt 0:3:40]} 25. Nxe5 {[%emt 0:1:58]} Nxf2 {[%emt 0:7:37]} 26. Rd7 {[%emt 0:2:26]} Qf6 {[%emt 0:0:14]} 27. Rxb7 {[%emt 0:3:23]} Qxe5 {[%emt 0:0:54]} 28. Qxe5 {[%emt 0:1:11]} Bxe5 {[%emt 0:0:2]} 29. Nc7 {[%emt 0:2:40]} Ng4 {[%emt 0:7:31]} 30. Nxe6 {[%emt 0:0:13]} Rf6 {[%emt 0:0:58]} 31. Ng5 {[%emt 0:1:21]} Bd4+ {[%emt 0:0:6]} 32. Kh1 {[%emt 0:0:0]} Nf2+ {[%emt 0:0:44]} 33. Kh2 {[%emt 0:0:2]} Ng4+ {[%emt 0:0:8]} 34. Kh1 {[%emt 0:0:0]} Nf2+ {[%emt 0:0:8]} 35. Kh2 {[%emt 0:0:9]} Ng4+ {[%emt 0:0:5]} 36. Kh1 {[%emt 0:0:1]} Nf2+ {[%emt 0:0:17]} 1/2-1/2

[Event "FIDE Women Candidates 2026"]
[White "Muzychuk,Anna"]
[Black "Zhu,Jiner"]
[Site "Agios Georgios Pegeia"]
[Round "14.3"]
[Annotator "RC"]
[Result "1/2-1/2"]
[Date "2026.04.15"]
[WhiteElo "2522"]
[BlackElo "2578"]
[PlyCount "111"]
[TimeControl "60"]

1. e4 {[%emt 0:0:2]} c5 {[%emt 0:0:6]} 2. c3 {[%emt 0:0:6]} d5 {[%emt 0:0:7]} 3. exd5 {[%emt 0:0:5]} Nf6 {[%emt 0:0:3]} 4. Bb5+ {[%emt 0:1:12]} Nbd7 {[%emt 0:0:30]} 5. d4 {[%emt 0:2:28]} a6 {[%emt 0:6:6]} 6. Be2 {[%emt 0:5:44]} Nxd5 {[%emt 0:0:15]} 7. Nf3 {[%emt 0:0:14]} e6 {[%emt 0:0:22]} 8. c4 {[%emt 0:1:33]} N5f6 {[%emt 0:0:28]} 9. O-O {[%emt 0:0:34]} Qc7 {[%emt 0:0:41]} 10. Nc3 {[%emt 0:0:54]} Bd6 {[%emt 0:0:15]} 11. dxc5 {[%emt 0:3:29]} Bxc5 {[%emt 0:0:9]} 12. a3 {[%emt 0:1:19]} b6 {[%emt 0:0:14]} 13. b4 {[%emt 0:2:24]} Bd6 {[%emt 0:0:11]} 14. h3 {[%emt 0:7:14]} Bb7 {[%emt 0:1:14]} 15. Be3 {[%emt 0:3:31]} O-O {[%emt 0:10:13]} 16. Rc1 {[%emt 0:0:55]} Rac8 {[%emt 0:2:27]} 17. Na4 {[%emt 0:8:4]} Rfd8 {[%emt 0:10:37]} 18. Qb3 {[%emt 0:1:22]} Bf4 {[%emt 0:2:2]} 19. Rfd1 {[%emt 0:3:8]} Bc6 {[%emt 0:3:1]} 20. Bxf4 {[%emt 0:9:34]} Qxf4 {[%emt 0:0:9]} 21. c5 {[%emt 0:4:36]} Bd5 {[%emt 0:19:33]} 22. Qb2 {[%emt 0:0:55]} bxc5 {[%emt 0:5:15]} 23. Nxc5 {[%emt 0:0:55]} Nxc5 {[%emt 0:0:4]} 24. Rxc5 {[%emt 0:7:43]} Rxc5 {[%emt 0:1:44]} 25. bxc5 {[%emt 0:0:0]} Qc7 {[%emt 0:4:19]} 26. Rc1 {[%emt 0:10:3]} Rb8 {[%emt 0:0:11]} 27. Qe5 {[%emt 0:1:27]} Ne8 {[%emt 0:0:14]} 28. Qxc7 {[%emt 0:8:4]} Nxc7 {[%emt 0:0:5]} 29. Ne5 {[%emt 0:0:11]} f6 {[%emt 0:1:25]} 30. Nc4 {[%emt 0:5:42]} Rb3 {[%emt 0:0:24]} 31. a4 {[%emt 0:2:50]} Kf7 {[%emt 0:3:48]} 32. Nb6 {[%emt 0:0:13]} Rb4 {[%emt 0:0:48]} 33. Rd1 {[%emt 0:1:32]} Ke8 {[%emt 0:2:26]} 34. Bf3 {[%emt 0:1:51]} Bxf3 {[%emt 0:0:21]} 35. gxf3 {[%emt 0:0:1]} e5 {[%emt 0:0:23]} 36. Rd6 {[%emt 0:3:21]} Rd4 {[%emt 0:0:54]} 37. Rc6 {[%emt 0:1:18]} Kd8 {[%emt 0:0:7]} 38. Kf1 {[%emt 0:1:54]} a5 {[%emt 0:6:18]} 39. Kg2 {[%emt 0:1:26]} h5 {[%emt 0:3:52]} 40. Kf1 {[%emt 0:1:29]} Na6 {[%emt 0:9:20]} 41. Rc8+ {[%emt 0:9:24]} Ke7 {[%emt 0:0:55]} 42. Rc6 {[%emt 0:0:19]} Ke8 {[%emt 0:3:49]} 43. Kg2 {[%emt 0:2:2]} h4 {[%emt 0:5:40]} 44. Rc8+ {[%emt 0:4:51]} Ke7 {[%emt 0:0:6]} 45. Rc6 {[%emt 0:0:40]} Kf7 {[%emt 0:5:9]} 46. Nc8 {[%emt 0:5:18]} Nb4 {[%emt 0:0:36]} 47. Rc7+ {[%emt 0:0:26]} Ke6 {[%emt 0:6:31]} 48. Rxg7 {[%emt 0:2:44]} Nd5 {[%emt 0:0:5]} 49. Nb6 {[%emt 0:1:35]} Nxb6 {[%emt 0:5:4]} 50. cxb6 {[%emt 0:0:1]} Rxa4 {[%emt 0:0:8]} 51. Rg8 {[%emt 0:1:29]} Rb4 {[%emt 0:0:10]} 52. Ra8 {[%emt 0:0:6]} Rxb6 {[%emt 0:0:24]} 53. Rxa5 {[%emt 0:0:6]} Rb4 {[%emt 0:0:3]} 54. Ra8 {[%emt 0:0:24]} Kf5 {[%emt 0:0:6]} 55. Rg8 {[%emt 0:0:19]} Ra4 {[%emt 0:0:7]} 56. Rg7 {[%emt 0:0:22]} 1/2-1/2

[Event "FIDE Women Candidates 2026"]
[White "Goryachkina,Aleksandra"]
[Black "Tan,Zhongyi"]
[Site "Agios Georgios Pegeia"]
[Round "14.4"]
[Annotator "RC"]
[Result "1-0"]
[Date "2026.04.15"]
[WhiteElo "2534"]
[BlackElo "2535"]
[PlyCount "125"]
[TimeControl "60"]

1. e4 {[%emt 0:0:5]} e5 {[%emt 0:0:6]} 2. Nf3 {[%emt 0:0:7]} Nf6 {[%emt 0:0:5]} 3. Nxe5 {[%emt 0:0:20]} d6 {[%emt 0:0:6]} 4. Nf3 {[%emt 0:0:6]} Nxe4 {[%emt 0:0:6]} 5. d4 {[%emt 0:0:9]} d5 {[%emt 0:0:8]} 6. Bd3 {[%emt 0:0:22]} Be7 {[%emt 0:0:9]} 7. O-O {[%emt 0:0:31]} Nc6 {[%emt 0:0:6]} 8. Nbd2 {[%emt 0:0:36]} Nd6 {[%emt 0:0:8]} 9. c3 {[%emt 0:1:8]} Bf5 {[%emt 0:0:9]} 10. Bc2 {[%emt 0:0:20]} Bxc2 {[%emt 0:0:22]} 11. Qxc2 {[%emt 0:0:2]} Nb8 {[%emt 0:0:9]} 12. Re1 {[%emt 0:5:51]} O-O {[%emt 0:1:3]} 13. Nf1 {[%emt 0:1:0]} Nd7 {[%emt 0:0:22]} 14. Ng3 {[%emt 0:1:19]} Re8 {[%emt 0:1:50]} 15. Bf4 {[%emt 0:3:11]} c6 {[%emt 0:2:0]} 16. Qb3 b6 {[%emt 0:3:47]} 17. Re2 {[%emt 0:9:17]} Bf8 {[%emt 0:4:14]} 18. Bxd6 {[%emt 0:16:37]} Bxd6 {[%emt 0:1:7]} 19. Rxe8+ {[%emt 0:1:12]} Qxe8 {[%emt 0:0:5]} 20. Re1 {[%emt 0:0:40]} Qf8 {[%emt 0:13:16]} 21. Qa4 {[%emt 0:3:5]} Bxg3 {[%emt 0:13:20]} 22. Qxc6 {[%emt 0:1:5]} Bxf2+ {[%emt 0:1:51]} 23. Kxf2 {[%emt 0:0:6]} Nf6 {[%emt 0:0:8]} 24. Kg1 {[%emt 0:1:46]} Re8 {[%emt 0:5:36]} 25. Re5 {[%emt 0:2:40]} Re7 {[%emt 0:5:28]} 26. h3 {[%emt 0:6:3]} h6 {[%emt 0:0:21]} 27. Nh4 {[%emt 0:15:19]} Qe8 {[%emt 0:9:47]} 28. Qxe8+ {[%emt 0:3:36]} Rxe8 {[%emt 0:1:3]} 29. Nf5 {[%emt 0:1:49]} Kf8 {[%emt 0:3:27]} 30. Kf2 {[%emt 0:4:19]} h5 {[%emt 0:9:32]} 31. Kf3 {[%emt 0:3:6]} Rxe5 {[%emt 0:5:16]} 32. dxe5 {[%emt 0:0:2]} Nd7 {[%emt 0:0:4]} 33. Ke3 {[%emt 0:2:28]} g6 {[%emt 0:0:13]} 34. Nd6 {[%emt 0:2:3]} Ke7 {[%emt 0:0:43]} 35. Kd4 {[%emt 0:4:51]} Ke6 {[%emt 0:0:13]} 36. Nb5 {[%emt 0:1:15]} Nxe5 {[%emt 0:0:10]} 37. Nxa7 {[%emt 0:0:20]} Nc4 {[%emt 0:0:49]} 38. Nc8 {[%emt 0:1:30]} b5 {[%emt 0:5:3]} 39. b3 {[%emt 0:1:1]} Na3 {[%emt 0:2:5]} 40. Kc5 {[%emt 0:0:45]} f5 {[%emt 0:6:1]} 41. h4 {[%emt 0:21:37]} f4 {[%emt 0:7:25]} 42. Nb6 {[%emt 0:1:5]} f3 {[%emt 0:2:40]} 43. gxf3 {[%emt 0:1:21]} g5 {[%emt 0:0:5]} 44. hxg5 {[%emt 0:1:25]} h4 {[%emt 0:0:7]} 45. Nxd5 {[%emt 0:0:30]} Kf5 {[%emt 0:0:23]} 46. g6 {[%emt 0:3:13]} Kxg6 {[%emt 0:0:5]} 47. Nf4+ {[%emt 0:0:49]} Kf5 {[%emt 0:0:5]} 48. Nh3 {[%emt 0:0:6]} Ke5 {[%emt 0:3:53]} 49. Kb4 {[%emt 0:1:20]} Nb1 {[%emt 0:0:8]} 50. f4+ {[%emt 0:6:29]} Kd6 {[%emt 0:0:59]} 51. Ng5 {[%emt 0:0:51]} Kd5 {[%emt 0:1:57]} 52. f5 {[%emt 0:0:42]} Ke5 {[%emt 0:1:0]} 53. Nf3+ {[%emt 0:0:23]} Kxf5 {[%emt 0:0:6]} 54. Nxh4+ {[%emt 0:0:21]} Ke4 {[%emt 0:0:16]} 55. Ng6 {[%emt 0:0:37]} Kd3 {[%emt 0:3:4]} 56. Nf4+ {[%emt 0:0:46]} Kc2 {[%emt 0:0:32]} 57. Nd5 {[%emt 0:0:24]} Nd2 {[%emt 0:1:13]} 58. a4 {[%emt 0:2:14]} bxa4 {[%emt 0:0:29]} 59. bxa4 {[%emt 0:0:1]} Ne4 {[%emt 0:0:24]} 60. a5 {[%emt 0:0:15]} Nd6 {[%emt 0:0:9]} 61. a6 {[%emt 0:0:20]} Nc8 {[%emt 0:0:13]} 62. Kc5 {[%emt 0:0:18]} Kd3 {[%emt 0:0:23]} 63. Ne7 {[%emt 0:0:24]} 1-0